bitfinex-derivatives/quotes_SOLF0:USTF0_20250903
["timestamp","ask_amount","ask_price","bid_price","bid_amount"]
[1756869340226,9.20338654,211.01,210.92,8.86338654]
[1756869340627,9.20338654,211.01,210.93,1.72338654]
[1756869342933,9.20338654,211.01,210.92,7.14]
[1756869343334,7.51,210.98,210.92,7.14]
[1756869343735,7.51,210.98,210.91,1.72338654]
[1756869344034,1.72338654,210.97,210.89,1.72338654]
[1756869345126,9.23338654,210.98,210.89,1.72338654]
[1756869345525,42.34179296,211.07,210.88,8.92338654]
[1756869345526,1.72338654,210.96,210.88,8.92338654]
[1756869345731,7.51,210.95,210.88,7.2]
[1756869346034,7.51,210.95,210.88,8.92338654]
[1756869346432,1.72338654,210.92,210.83,1.72338654]
[1756869347033,1.72338654,210.92,210.84,7.2]
[1756869347232,1.72338654,210.92,210.85,1.72338654]
[1756869348238,1.72338654,210.92,210.84,7.2]
[1756869349433,7.51,210.93,210.84,7.2]
[1756869349631,9.23338654,210.93,210.85,1.72338654]
[1756869350335,7.51,210.9,210.84,7.2]
[1756869352038,1.72338654,210.91,210.84,8.92338654]
[1756869352237,1.72338654,210.93,210.84,8.92338654]
[1756869352444,1.72338654,210.93,210.84,7.2]
[1756869352748,1.72338654,210.93,210.84,8.92338654]
[1756869353041,1.72338654,210.92,210.84,8.92338654]
[1756869353742,1.72338654,210.88,210.77,7.2]
[1756869353938,7.51,210.87,210.79,1.72338654]
[1756869355145,7.51,210.87,210.77,47.02]
[1756869355344,1.72338654,210.89,210.81,1.72338654]
[1756869355544,1.72338654,210.89,210.81,8.92338654]
[1756869356638,9.23338654,210.91,210.84,7.2]
[1756869357643,7.51,210.91,210.82,1.72338654]
[1756869357841,9.23338654,210.91,210.84,1.72338654]
[1756869358346,9.23338654,210.91,210.83,7.2]
[1756869358543,9.23338654,210.91,210.84,1.72338654]
[1756869358744,7.51,210.91,210.84,1.72338654]
[1756869359248,1.72338654,210.94,210.86,8.92338654]
[1756869360849,1.72338654,210.94,210.86,7.2]
[1756869361147,1.72338654,210.94,210.86,8.92338654]
[1756869361349,1.72338654,210.94,210.87,1.72338654]
[1756869361741,7.51,210.93,210.84,25.18]
[1756869361947,1.72338654,210.9,210.83,1.72338654]
[1756869363049,1.72338654,210.9,210.82,7.2]
[1756869363245,1.72338654,210.9,210.82,8.92338654]
[1756869364853,1.72338654,210.9,210.82,7.2]
[1756869365048,1.72338654,210.9,210.82,8.92338654]
[1756869366250,7.51,210.91,210.84,1.72338654]
[1756869366449,7.51,210.91,210.82,7.2]
[1756869366654,7.51,210.91,210.84,1.72338654]
[1756869367054,7.51,210.91,210.83,1.72338654]
[1756869367456,7.51,210.91,210.82,7.2]
[1756869372556,7.65,210.99,210.87,7.55]
[1756869376564,7.65,210.97,210.85,2.69973391]
[1756869376764,7.65,210.97,210.83,7.55]
[1756869376966,2.69973391,210.95,210.83,7.55]
[1756869377269,7.65,210.94,210.83,7.55]
[1756869382870,7.65,210.94,210.84,7.55]
[1756869387868,15.63773596,210.98,210.86,7.55]
[1756869388065,12.93800205,210.98,210.86,7.55]
[1756869388265,12.93800205,210.98,210.86,10.24973391]
[1756869388462,12.93800205,210.98,210.87,7.55]
[1756869388667,7.65,210.98,210.89,2.69973391]
[1756869388867,7.65,210.98,210.9,7.55]
[1756869389263,5.28800205,211.0,210.9,7.55]
[1756869389462,12.93800205,211.02,210.86,7.55]
[1756869389663,12.93800205,211.02,210.94,7.55]
[1756869389664,7.65,211.02,210.94,7.55]
[1756869390167,7.65,211.02,210.95,4.2851314]
[1756869390363,7.65,211.02,210.96,4.2851314]
[1756869390665,7.65,211.02,210.94,7.55]
[1756869390865,7.65,211.02,210.95,4.28533646]
[1756869391070,7.65,211.02,210.94,7.55]
[1756869391269,7.65,211.02,210.95,4.28345447]
[1756869391470,12.93800205,211.02,210.9,10.24973391]
[1756869391771,7.65,211.02,210.92,7.55]
[1756869392072,7.65,211.02,210.93,4.28445702]
[1756869392365,7.65,211.02,210.95,7.55]
[1756869392769,7.65,211.02,210.96,4.28121228]
[1756869392971,7.65,211.02,210.95,7.55]
[1756869393165,39.46,211.05,210.95,7.55]
[1756869393361,39.46,211.05,210.97,7.55]
[1756869394465,7.65,211.06,210.97,7.55]
[1756869397672,7.65,211.05,210.93,10.24973391]
[1756869398468,2.69973391,211.06,210.93,10.24973391]
[1756869398771,2.69973391,211.03,210.93,7.55]
[1756869398972,7.65,211.02,210.93,7.55]
[1756869399173,2.69973391,211.03,210.9,10.24973391]
[1756869399374,7.65,211.02,210.9,10.24973391]
[1756869401370,7.65,211.02,210.9,7.55]
[1756869401572,12.93800205,211.02,210.9,7.55]
[1756869402764,7.65,211.02,210.93,7.89]
[1756869409476,7.65,211.02,210.94,4.26759216]
[1756869409666,7.65,211.02,210.93,7.89]
[1756869411472,7.65,211.02,210.94,4.28530466]
[1756869411773,7.65,211.02,210.93,7.89]
[1756869411975,7.65,211.02,210.94,4.28530466]
[1756869412273,7.65,211.02,210.93,7.89]
[1756869412569,7.65,211.02,210.94,4.28528532]
[1756869412765,7.65,211.02,210.93,7.89]
[1756869412965,7.65,211.02,210.94,4.28489603]
[1756869413171,7.65,211.02,210.93,7.89]
[1756869414072,7.93179296,211.11,210.89,37.42]
[1756869414073,7.68,211.07,210.98,7.89]
[1756869419379,7.68,211.11,211.01,7.89]
[1756869420077,10.37973391,211.11,211.01,7.89]
[1756869422674,7.68,211.11,211.01,7.89]
[1756869423979,5.28800205,211.15,211.01,7.89]
[1756869424176,7.68,211.14,211.04,7.89]
[1756869424980,7.68,211.14,211.05,7.89]
[1756869426679,7.68,211.17,211.05,7.89]
[1756869429479,1.72405003,211.15,211.07,1.72405003]
[1756869429680,9.40405003,211.15,211.07,1.72405003]
[1756869431078,7.68,211.15,211.07,1.72405003]
[1756869431282,7.68,211.15,211.07,9.61405003]
[1756869433082,7.68,211.15,211.1,7.75]
[1756869433283,7.68,211.15,211.09,1.72405003]
[1756869433486,7.68,211.15,211.09,9.47405003]
[1756869433783,1.72405003,211.13,210.98,3.94606596]
[1756869433983,7.51,211.1,211.02,9.47405003]
[1756869434181,1.72405003,211.09,211.02,7.75]
[1756869434381,7.51,211.08,211.0,1.72405003]
[1756869434583,7.51,211.08,210.97,7.75]
[1756869434584,1.72405003,211.07,210.98,1.72405003]
[1756869435180,7.51,211.08,211.0,1.72405003]
[1756869435391,1.72405003,211.07,211.0,1.72405003]
[1756869435581,1.72405003,211.07,210.98,1.72405003]
[1756869437082,7.51,211.06,210.98,1.72405003]
[1756869438276,1.72405003,211.05,210.97,7.75]
[1756869438483,7.51,211.02,210.88,7.75]
[1756869438682,9.23405003,210.99,210.9,1.72405003]
[1756869438989,9.23405003,210.99,210.91,4.2906101]
[1756869439288,9.23405003,210.99,210.9,1.72405003]
[1756869439487,9.23405003,210.99,210.91,4.29040427]
[1756869439675,9.23405003,210.99,210.9,1.72405003]
[1756869439881,9.23405003,210.99,210.91,4.28934883]
[1756869440081,9.23405003,210.99,210.9,1.72405003]
[1756869440284,7.51,210.99,210.9,1.72405003]
[1756869440488,9.23405003,210.99,210.9,1.72405003]
[1756869441185,7.51,210.96,210.88,9.47405003]
[1756869441386,1.72405003,210.95,210.88,7.75]
[1756869441686,1.72405003,210.93,210.8,292.0]
[1756869441889,7.51,210.92,210.84,1.72405003]
[1756869442188,7.51,210.92,210.85,4.29174491]
[1756869442390,7.51,210.92,210.86,1.72405003]
[1756869446591,7.51,210.92,210.84,7.75]
[1756869446592,9.23405003,210.92,210.84,7.75]
[1756869447194,7.51,210.92,210.84,7.75]
[1756869447388,1.72405003,210.91,210.84,7.75]
[1756869448887,7.51,210.92,210.88,7.75]
[1756869449992,1.72405003,210.95,210.87,9.47405003]
[1756869450589,7.51,210.96,210.9,7.75]
[1756869450997,1.72405003,211.0,210.91,1.72405003]
[1756869451190,7.51,211.02,210.82,66.4009]
[1756869451191,1.72405003,211.01,210.93,1.72405003]
[1756869452791,1.72405003,210.99,210.92,7.75]
[1756869453189,7.51,211.0,210.92,7.75]
[1756869453487,1.72405003,210.99,210.92,7.75]
[1756869454189,7.51,211.0,210.93,1.72405003]
[1756869454498,7.51,211.0,210.95,1.72405003]
[1756869454689,7.51,211.0,210.95,9.47405003]
[1756869454994,7.51,211.0,210.96,7.75]
[1756869455391,7.51,211.02,210.95,1.72405003]
[1756869455588,7.51,211.0,210.93,1.72405003]
[1756869462104,1.72405003,211.05,210.97,1.72405003]
[1756869462304,7.37,211.04,210.97,1.72405003]
[1756869463797,7.37,211.04,210.99,1.72405003]
[1756869463993,1.72405003,211.06,210.99,1.72405003]
[1756869463994,7.37,211.05,210.99,1.72405003]
[1756869465396,7.37,211.05,210.98,1.72405003]
[1756869468202,7.37,211.12,211.02,1.72405003]
[1756869468402,9.09405003,211.12,211.04,1.72405003]
[1756869468708,0.030409,211.09,211.06,0.03175237]
[1756869468901,7.400409,211.09,211.06,0.03175237]
[1756869469604,7.37,211.08,211.06,0.03175237]
[1756869470602,0.030409,211.09,211.06,0.03175237]
[1756869471507,7.400409,211.09,211.06,0.03175237]
[1756869472103,0.030409,211.09,211.07,9.29405003]
[1756869472304,0.030409,211.09,211.07,1.72405003]
[1756869472507,7.400409,211.09,211.07,1.72405003]
[1756869472807,7.37,211.08,211.06,0.03175237]
[1756869473199,0.030409,211.09,211.06,0.03175237]
[1756869473404,7.37,211.08,211.06,0.03175237]
[1756869474103,0.030409,211.09,211.06,0.03175237]
[1756869474300,9.09405003,211.08,211.06,0.03175237]
[1756869475006,7.37,211.07,211.06,0.03175237]
[1756869476707,7.85,211.07,210.97,1.72405003]
[1756869477000,118.5,211.1,210.97,1.72405003]
[1756869477001,7.37,211.04,210.97,1.72405003]
[1756869478002,0.03603238,211.03,210.97,1.72405003]
[1756869478601,7.37,211.02,210.95,9.29405003]
[1756869478806,9.09405003,211.02,210.95,1.72405003]
[1756869479108,9.09405003,211.02,210.93,124.9210223]
[1756869479109,7.37,210.99,210.93,126.64507233]
[1756869479608,0.0304056,210.98,210.93,124.9210223]
[1756869479799,7.4004056,210.98,210.94,1.72405003]
[1756869480003,7.4004056,210.98,210.94,9.29405003]
[1756869480802,0.0304056,210.98,210.94,1.72405003]
[1756869481107,7.37,210.97,210.92,9.29405003]
[1756869481808,7.40078079,210.97,210.92,9.29405003]
[1756869482009,7.40078079,210.97,210.93,7.57]
[1756869484113,7.40078079,210.97,210.85,49.1]
[1756869484114,0.03078079,210.97,210.91,1.72405003]
[1756869486707,7.37,210.96,210.88,1.72405003]
[1756869486902,9.09405003,210.96,210.88,1.72405003]
[1756869487515,0.0350726,210.94,210.86,7.57]
[1756869487705,0.0350726,210.94,210.9,7.57]
[1756869487901,0.0350726,210.94,210.91,1.72405003]
[1756869488105,7.37,210.96,210.92,7.57]
[1756869488305,0.03057862,210.95,210.92,7.57]
[1756869488906,0.03057862,210.95,210.91,1.72405003]
[1756869489104,0.03057862,210.95,210.92,7.57]
[1756869489313,0.03057862,210.95,210.91,1.72405003]
[1756869489713,0.03057862,210.95,210.94,7.57]
[1756869490109,7.37,211.0,210.94,7.57]
[1756869490308,0.03170258,210.97,210.94,7.57]
[1756869490510,7.37,210.96,210.95,0.03100275]
[1756869491013,7.37,210.96,210.91,1.72405003]
[1756869491014,0.03461963,210.98,210.91,1.72405003]
[1756869491403,0.03461963,210.98,210.9,7.57]
[1756869491601,0.03461963,210.98,210.91,4.29258725]
[1756869491803,0.03461963,210.98,210.9,7.57]
[1756869492003,0.03461963,210.98,210.91,4.29194255]
[1756869492213,0.03461963,210.98,210.9,7.57]
[1756869492414,0.03461963,210.98,210.91,4.29279901]
[1756869492712,0.03461963,210.98,210.92,4.29279901]
[1756869492912,0.03461963,210.98,210.9,7.57]
[1756869493109,0.03461963,210.98,210.91,4.29280253]
[1756869493314,7.28,210.97,210.9,7.57]
[1756869495113,7.28,210.97,210.86,7.72]
[1756869495323,7.28,210.97,210.87,4.29895643]
[1756869495511,7.28,210.97,210.88,4.29895643]
[1756869495711,7.28,210.93,210.89,4.29895643]
[1756869495917,7.28,210.93,210.86,7.72]
[1756869496221,7.28,210.93,210.87,4.30016865]
[1756869496420,7.28,210.93,210.88,4.30016865]
[1756869496621,7.28,210.93,210.86,7.72]
[1756869496924,0.03247564,210.94,210.88,7.72]
[1756869497221,0.03247564,210.94,210.89,4.29930848]
[1756869497420,0.03247564,210.94,210.91,7.72]
[1756869497821,7.31247564,210.94,210.91,7.72]
[1756869498417,7.31247564,210.94,210.85,2.69799061]
[1756869498614,7.31247564,210.94,210.86,12.01827592]
[1756869498818,7.31247564,210.94,210.87,4.29827592]
[1756869499023,7.31247564,210.94,210.86,7.72]
[1756869499024,7.31247564,210.94,210.88,4.29827592]
[1756869499228,7.31247564,210.94,210.86,7.72]
[1756869499522,7.31247564,210.94,210.87,4.29769195]
[1756869499727,7.31247564,210.94,210.88,4.29769195]
[1756869499930,7.31247564,210.94,210.86,7.72]
[1756869500130,7.31247564,210.94,210.87,4.29227983]
[1756869500330,7.31247564,210.94,210.88,4.29227983]
[1756869500533,7.31247564,210.94,210.86,7.72]
[1756869500733,7.31247564,210.94,210.87,4.29337327]
[1756869500933,7.31247564,210.94,210.86,7.72]
[1756869501236,7.31247564,210.94,210.87,4.29415979]
[1756869501432,7.31247564,210.94,210.86,7.72]
[1756869501633,7.31247564,210.94,210.87,4.29468145]
[1756869501832,7.31247564,210.94,210.86,7.72]
[1756869502032,7.31247564,210.94,210.87,4.29487531]
[1756869502233,7.28,210.93,210.81,7.72]
[1756869502529,7.28,210.93,210.82,4.29535168]
[1756869502833,7.28,210.93,210.83,4.29535168]
[1756869503132,7.28,210.89,210.81,7.72]
[1756869503335,7.28,210.89,210.82,4.29402622]
[1756869503535,7.28,210.89,210.81,7.72]
[1756869503736,7.28,210.89,210.82,4.29357506]
[1756869503933,7.28,210.89,210.81,7.72]
[1756869504136,7.28,210.89,210.82,4.29357506]
[1756869504336,7.28,210.89,210.81,7.72]
[1756869504636,7.28,210.89,210.82,4.29003764]
[1756869504837,7.28,210.89,210.81,7.72]
[1756869505039,7.28,210.89,210.82,4.2899874]
[1756869505239,7.28,210.89,210.81,7.72]
[1756869505441,7.28,210.89,210.82,4.2882282]
[1756869505631,7.28,210.89,210.81,7.72]
[1756869505940,7.28,210.89,210.82,4.28857091]
[1756869506233,7.28,210.89,210.81,7.72]
[1756869506438,7.28,210.89,210.82,4.28701626]
[1756869506633,7.28,210.89,210.81,7.72]
[1756869517550,7.28,210.89,210.78,7.72]
[1756869518351,7.31447103,210.86,210.78,7.72]
[1756869523747,0.03447103,210.86,210.81,7.83]
[1756869524147,7.18,210.9,210.81,7.83]
[1756869524352,0.03355619,210.86,210.81,7.83]
[1756869525845,0.03355619,210.86,210.83,7.83]
[1756869526249,0.03355619,210.86,210.81,7.83]
[1756869526450,0.03355619,210.86,210.83,7.83]
[1756869526750,0.03355619,210.86,210.81,7.83]
[1756869526951,0.03355619,210.86,210.82,4.29373931]
[1756869527160,0.03355619,210.86,210.81,7.83]
[1756869527454,0.03355619,210.86,210.82,4.29416646]
[1756869527657,0.03355619,210.86,210.83,4.29416646]
[1756869527855,0.03355619,210.86,210.81,7.83]
[1756869528050,0.03355619,210.86,210.83,7.83]
[1756869528356,0.03355619,210.86,210.81,7.83]
[1756869528559,0.03355619,210.86,210.83,7.83]
[1756869528753,0.03355619,210.86,210.81,7.83]
[1756869528955,0.03355619,210.86,210.83,7.83]
[1756869529157,0.03355619,210.86,210.81,7.83]
[1756869529353,0.03355619,210.86,210.82,4.29666211]
[1756869529559,0.03355619,210.86,210.83,4.29655676]
[1756869529759,0.03355619,210.86,210.81,7.83]
[1756869529959,0.03355619,210.86,210.82,4.29655676]
[1756869530258,0.03355619,210.86,210.83,4.29655676]
[1756869530459,0.03355619,210.86,210.81,7.83]
[1756869530659,0.03355619,210.86,210.82,4.29765951]
[1756869530861,0.03355619,210.86,210.83,4.29765951]
[1756869531056,0.03355619,210.86,210.81,7.83]
[1756869531261,0.03355619,210.86,210.82,4.29660851]
[1756869531556,0.03355619,210.86,210.83,4.29660851]
[1756869531758,0.03355619,210.86,210.81,7.83]
[1756869531957,0.03355619,210.86,210.82,4.29753369]
[1756869532157,0.03355619,210.86,210.83,4.29753369]
[1756869532458,0.03355619,210.86,210.81,7.83]
[1756869532659,0.03355619,210.86,210.82,4.29771231]
[1756869532955,0.03355619,210.86,210.83,4.29771231]
[1756869533260,0.03355619,210.86,210.81,7.83]
[1756869533457,0.03355619,210.86,210.83,10.52799061]
[1756869533759,0.03355619,210.86,210.85,7.83]
[1756869533960,0.03355619,210.86,210.85,12.12827359]
[1756869543560,0.03355619,210.86,210.82,0.03009599]
[1756869543760,0.03355619,210.86,210.83,12.13871513]
[1756869543963,0.03355619,210.86,210.84,12.13871513]
[1756869544167,0.03355619,210.86,210.84,7.83]
[1756869544464,0.03355619,210.86,210.83,7.83]
[1756869544665,0.03355619,210.86,210.85,7.83]
[1756869545968,0.03355619,210.86,210.83,7.83]
[1756869546166,0.03355619,210.86,210.84,4.31072442]
[1756869546369,0.03355619,210.86,210.82,0.03009599]
[1756869546667,0.03355619,210.86,210.84,7.83]
[1756869547065,0.03355619,210.86,210.83,7.83]
[1756869547365,0.03355619,210.86,210.85,7.83]
[1756869547561,0.03355619,210.86,210.85,12.14126766]
[1756869551470,0.03355619,210.86,210.85,13.86870331]
[1756869554062,0.03355619,210.86,210.85,12.14126766]
[1756869554570,0.03355619,210.86,210.85,13.86870331]
[1756869557069,7.31,210.94,210.86,7.13]
[1756869557272,7.31,210.94,210.89,1.72743565]
[1756869557472,7.31,210.94,210.9,7.13]
[1756869557867,14.3254377,210.97,210.9,7.13]
[1756869563267,12.59800205,210.97,210.9,7.13]
[1756869563470,14.3254377,210.97,210.9,7.13]
[1756869566077,5.28800205,210.96,210.9,7.13]
[1756869566479,7.31,210.95,210.9,7.13]
[1756869566680,5.28800205,210.96,210.9,7.13]
[1756869567075,7.31,210.95,210.9,7.13]
[1756869567377,5.28800205,210.96,210.9,7.13]
[1756869567585,7.31,210.95,210.9,7.13]
[1756869568080,5.28800205,210.96,210.9,7.13]
[1756869568279,7.31,210.95,210.9,7.13]
[1756869568474,5.28800205,210.96,210.9,7.13]
[1756869568677,7.31,210.95,210.9,7.13]
[1756869569383,5.28800205,210.96,210.9,7.13]
[1756869569584,7.31,210.95,210.9,7.13]
[1756869570076,5.28800205,210.96,210.9,7.13]
[1756869570282,7.31,210.94,210.9,7.13]
[1756869570478,1.72743565,210.97,210.81,10.12]
[1756869570479,1.72743565,210.91,210.81,7.13]
[1756869570674,1.72743565,210.91,210.69,66.4412]
[1756869570675,14.3254377,210.91,210.84,7.13]
[1756869570981,9.03743565,210.91,210.85,4.31811945]
[1756869571283,5.28800205,210.92,210.9,7.13]
[1756869571577,7.31,210.94,210.9,7.13]
[1756869571774,7.31,210.94,210.86,1.72743565]
[1756869571978,5.28800205,210.93,210.85,8.85743565]
[1756869572183,14.3254377,210.92,210.85,1.72743565]
[1756869572482,14.3254377,210.92,210.84,1.72743565]
[1756869572483,5.28800205,210.91,210.84,1.72743565]
[1756869574486,7.31,210.9,210.84,1.72743565]
[1756869574684,14.3254377,210.9,210.83,7.13]
[1756869575285,12.59800205,210.9,210.83,7.13]
[1756869575485,14.3254377,210.9,210.83,7.13]
[1756869576686,5.28800205,210.89,210.83,7.13]
[1756869576887,5.28800205,210.91,210.84,1.72743565]
[1756869577090,5.28800205,210.91,210.85,7.13]
[1756869579290,5.28800205,210.91,210.86,1.72743565]
[1756869579486,5.28800205,210.91,210.87,7.13]
[1756869579689,5.28800205,210.92,210.86,1.72743565]
[1756869579885,5.28800205,210.92,210.86,8.85743565]
[1756869580587,7.0154377,210.92,210.86,8.85743565]
[1756869581387,5.28800205,210.93,210.89,7.79]
[1756869581689,5.28800205,210.94,210.91,7.79]
[1756869582090,5.28800205,210.94,210.79,3.94132287]
[1756869582091,12.96800205,210.94,210.88,1.72743565]
[1756869582492,5.28800205,210.94,210.89,4.40640886]
[1756869582695,7.68,210.93,210.89,7.79]
[1756869583190,5.28800205,210.94,210.89,7.79]
[1756869583396,7.68,210.93,210.88,1.72743565]
[1756869583597,5.28800205,210.94,210.89,4.40646809]
[1756869583894,7.68,210.93,210.88,1.72743565]
[1756869584194,7.68,210.93,210.89,4.40648072]
[1756869584394,7.68,210.93,210.89,7.79]
[1756869585396,7.68,210.92,210.86,1.72743565]
[1756869585595,12.96800205,210.93,210.87,4.40488961]
[1756869585791,7.68,210.92,210.88,4.40488961]
[1756869585992,5.28800205,210.91,210.85,7.79]
[1756869586196,12.96800205,210.91,210.85,7.79]
[1756869586597,12.96800205,210.91,210.86,4.40542465]
[1756869586798,12.96800205,210.91,210.85,7.79]
[1756869587001,7.68,210.9,210.86,4.40500695]
[1756869587200,12.96800205,210.91,210.85,7.79]
[1756869587402,7.68,210.9,210.86,4.40496335]
[1756869587704,7.0154377,210.91,210.85,7.79]
[1756869587903,14.6954377,210.91,210.86,4.40429175]
[1756869588204,14.6954377,210.91,210.85,7.79]
[1756869588497,7.68,210.9,210.86,4.40387661]
[1756869588802,14.6954377,210.91,210.85,7.79]
[1756869589002,7.0154377,210.91,210.86,4.40382569]
[1756869589204,14.6954377,210.91,210.85,7.79]
[1756869589403,7.0154377,210.91,210.86,4.40329648]
[1756869589607,14.6954377,210.91,210.85,7.79]
[1756869589804,7.68,210.9,210.86,4.40333592]
[1756869590003,14.6954377,210.91,210.85,7.79]
[1756869590202,7.68,210.9,210.86,4.42683963]
[1756869590398,1.72743565,210.91,210.85,7.79]
[1756869590599,1.72743565,210.91,210.86,4.42700227]
[1756869590801,1.72743565,210.91,210.85,7.79]
[1756869591105,12.96800205,210.9,210.84,1.72743565]
[1756869591306,7.68,210.89,210.85,4.42812523]
[1756869591606,5.28800205,210.9,210.84,1.72743565]
[1756869591806,7.68,210.89,210.85,4.42808694]
[1756869592008,5.28800205,210.9,210.84,1.72743565]
[1756869592203,5.28800205,210.9,210.85,4.42807205]
[1756869592502,7.68,210.89,210.84,1.72743565]
[1756869592708,7.68,210.89,210.85,4.42809768]
[1756869592903,7.68,210.89,210.82,9.51743565]
[1756869593102,9.40743565,210.89,210.83,4.42804643]
[1756869593299,7.68,210.88,210.84,4.42804643]
[1756869593505,7.68,210.88,210.85,4.42804643]
[1756869593805,7.68,210.88,210.82,9.51743565]
[1756869594000,1.72743565,210.89,210.83,4.42770252]
[1756869594206,1.72743565,210.89,210.81,1.72743565]
[1756869594207,7.68,210.88,210.81,1.72743565]
[1756869594407,7.68,210.88,210.82,4.42805154]
[1756869594706,14.6954377,210.89,210.83,4.42805154]
[1756869594900,7.68,210.88,210.84,4.42805154]
[1756869595098,7.68,210.88,210.82,7.79]
[1756869595404,7.68,210.88,210.83,4.42644303]
[1756869595601,7.68,210.88,210.84,4.42644303]
[1756869595807,7.68,210.88,210.81,9.51743565]
[1756869596008,7.68,210.88,210.82,4.42666289]
[1756869596209,7.0154377,210.89,210.83,4.42666289]
[1756869596409,7.0154377,210.89,210.84,4.42666289]
[1756869596610,7.68,210.88,210.81,9.51743565]
[1756869597611,7.68,210.88,210.81,7.79]
[1756869597807,7.68,210.88,210.81,9.51743565]
[1756869598008,5.28800205,210.9,210.83,1.72743565]
[1756869598207,5.28800205,210.91,210.85,1.72743565]
[1756869598811,9.40743565,210.92,210.85,1.72743565]
[1756869599007,14.6954377,210.92,210.84,7.79]
[1756869599914,5.28800205,210.91,210.84,7.79]
[1756869600115,1.72743565,210.9,210.84,7.79]
[1756869600509,7.68,210.87,210.81,1.72743565]
[1756869600910,7.0154377,210.9,210.83,1.72743565]
[1756869601112,1.72743565,210.9,210.84,7.79]
[1756869603414,7.68,210.91,210.84,7.79]
[1756869603816,7.0154377,210.92,210.85,1.72743565]
[1756869604114,7.0154377,210.92,210.86,7.79]
[1756869604712,1.72743565,210.92,210.86,7.79]
[1756869605410,9.40743565,210.92,210.86,7.79]
[1756869606212,7.68,210.92,210.86,7.79]
[1756869606411,7.68,210.92,210.78,3.94132287]
[1756869606412,5.28800205,210.93,210.88,7.79]
[1756869606618,5.28800205,210.93,210.87,9.51743565]
[1756869607320,5.28800205,210.93,210.87,7.79]
[1756869607611,7.68,210.91,210.87,7.79]
[1756869607913,5.28800205,210.93,210.86,7.79]
[1756869608120,5.28800205,210.94,210.91,1.72743565]
[1756869608508,5.28800205,210.96,210.91,1.72743565]
[1756869608714,0.03122648,210.95,210.93,7.79]
[1756869610513,0.03122648,210.95,210.92,0.03128578]
[1756869610720,0.03122648,210.95,210.94,7.79]
[1756869610921,0.03122648,210.95,210.94,12.35654943]
[1756869617128,0.03122648,210.95,210.94,7.79]
[1756869619826,0.03122648,210.95,210.94,12.34350797]
[1756869620329,0.03122648,210.95,210.94,7.79]
[1756869624827,0.03122648,210.95,210.94,10.48763252]
[1756869625424,0.03122648,210.95,210.94,15.53251262]
[1756869625826,123.30800205,211.05,210.94,7.74251262]
[1756869626034,118.02,211.05,210.99,7.36]
[1756869627131,125.28,211.05,211.0,7.39344974]
[1756869627333,125.28,211.05,211.01,7.36]
[1756869627637,7.26,211.04,211.01,7.36]
[1756869629137,125.28,211.05,211.01,7.36]
[1756869629441,7.26,211.05,211.01,7.36]
[1756869629845,7.26,211.09,211.02,7.36]
[1756869630039,0.03032568,211.05,211.01,2.69763252]
[1756869630440,0.03032568,211.05,211.02,7.36]
[1756869630937,0.03032568,211.05,211.01,2.69763252]
[1756869631339,0.03032568,211.05,211.02,7.36]
[1756869632042,0.03032568,211.05,211.04,7.36]
[1756869632234,0.03032568,211.05,211.04,10.05763252]
[1756869637035,0.03032568,211.05,211.04,2.69763252]
[1756869637346,7.29032568,211.05,211.02,7.36]
[1756869637843,7.29032568,211.05,211.01,10.05763252]
[1756869638447,0.03032568,211.05,211.0,0.03344974]
[1756869638941,7.26,211.04,211.0,0.03344974]
[1756869639345,0.03032568,211.05,211.0,0.03344974]
[1756869640147,7.26,211.04,211.0,0.03344974]
[1756869640346,0.03032568,211.05,211.0,0.03344974]
[1756869641147,7.26,211.04,211.0,0.03344974]
[1756869641442,0.03032568,211.05,211.0,0.03344974]